bitfinex/quotes_BTCUSD_20260127
["timestamp","ask_amount","ask_price","bid_price","bid_amount"]
[1769544160978,0.11286828,88556.0,88545.0,0.17626855]
[1769544161189,0.11286828,88555.0,88545.0,0.17626855]
[1769544161422,0.02351565,88561.0,88545.0,0.17626855]
[1769544161655,0.11283916,88560.0,88545.0,0.17626855]
[1769544161920,0.11283916,88559.0,88545.0,0.17626855]
[1769544162124,0.11283916,88558.0,88547.0,0.20098211]
[1769544162332,0.02351565,88567.0,88547.0,0.19580363]
[1769544162506,0.30170058,88566.0,88547.0,0.19062488]
[1769544162683,0.11282426,88565.0,88548.0,0.20098211]
[1769544162851,0.11282426,88564.0,88548.0,0.20098211]
[1769544163053,0.11282426,88563.0,88548.0,0.20098211]
[1769544163276,0.11282426,88562.0,88548.0,0.20098211]
[1769544163527,0.11282426,88561.0,88548.0,0.20098211]
[1769544163754,0.11282426,88560.0,88548.0,0.20098211]
[1769544163975,0.11282426,88559.0,88548.0,0.20098211]
[1769544164230,0.05645753,88563.0,88548.0,0.20098211]
[1769544164481,0.11277948,88562.0,88548.0,0.20098211]
[1769544164683,0.11277948,88561.0,88548.0,0.20098211]
[1769544164891,0.11277948,88560.0,88548.0,0.20098211]
[1769544165099,0.0564564,88564.0,88548.0,0.20098211]
[1769544165302,0.18887632,88566.0,88548.0,0.20098211]
[1769544165303,0.1127626,88563.0,88548.0,0.20098211]
[1769544165505,0.1127626,88562.0,88548.0,0.20098211]
[1769544165813,0.1127626,88561.0,88548.0,0.20098211]
[1769544166006,0.1127626,88560.0,88548.0,0.20098211]
[1769544166174,0.18887632,88566.0,88548.0,0.20098211]
[1769544166373,0.11274836,88565.0,88548.0,0.20098211]
[1769544166637,0.18887632,88566.0,88548.0,0.20098211]
[1769544166638,0.11274836,88564.0,88548.0,0.20098211]
[1769544166869,0.11274836,88563.0,88548.0,0.20098211]
[1769544167077,0.11274836,88562.0,88548.0,0.20098211]
[1769544167311,0.11274836,88561.0,88548.0,0.20098211]
[1769544167588,0.18887632,88566.0,88548.0,0.20098211]
[1769544167786,0.13625154,88565.0,88548.0,0.20098211]
[1769544167936,0.11273589,88564.0,88548.0,0.20098211]
[1769544168147,0.11273589,88563.0,88548.0,0.17626855]
[1769544168359,0.18927632,88571.0,88550.0,0.20098211]
[1769544168569,0.16536067,88569.0,88550.0,0.02298479]
[1769544168781,0.05645727,88563.0,88544.0,0.17626855]
[1769544169234,0.16536067,88560.0,88532.0,0.02471356]
[1769544169512,0.02351565,88559.0,88536.0,0.02471356]
[1769544169727,0.02351565,88559.0,88539.0,0.17626855]
[1769544169939,0.02351565,88559.0,88542.0,0.02471356]
[1769544170399,0.02351565,88559.0,88542.0,0.20098211]
[1769544172758,0.16536067,88563.0,88530.0,0.00046426]
[1769544172942,0.02351565,88560.0,88531.0,0.20098211]
[1769544173149,0.16536067,88557.0,88531.0,0.20098211]
[1769544173360,0.02351565,88554.0,88531.0,0.20098211]
[1769544173560,0.02351565,88553.0,88531.0,0.20098211]
[1769544174449,0.02301359,88551.0,88531.0,0.20098211]
[1769544176088,0.02301359,88551.0,88531.0,0.17626855]
[1769544176306,0.02301359,88551.0,88530.0,0.33620231]
[1769544176307,0.19332623,88566.0,88535.0,0.17971599]
[1769544176484,0.19332623,88566.0,88530.0,0.33620231]
[1769544176485,0.11283141,88565.0,88538.0,0.02395358]
[1769544176679,0.02301359,88566.0,88542.0,0.02395358]
[1769544176882,0.11282634,88565.0,88544.0,0.02395358]
[1769544177120,0.02301359,88566.0,88547.0,0.20366957]
[1769544177373,0.11283882,88565.0,88547.0,0.20366957]
[1769544177584,0.02301359,88566.0,88547.0,0.20366957]
[1769544177786,0.11283817,88565.0,88547.0,0.20366957]
[1769544177938,0.02301359,88566.0,88547.0,0.20366957]
[1769544178135,0.11283785,88565.0,88547.0,0.20366957]
[1769544178341,0.11283785,88564.0,88547.0,0.20366957]
[1769544178537,0.17031264,88566.0,88547.0,0.20366957]
[1769544178728,0.02301359,88564.0,88547.0,0.20366957]
[1769544180750,0.02301359,88564.0,88547.0,0.20021181]
[1769544180921,0.02301359,88564.0,88547.0,0.19675335]
[1769544181099,0.02301359,88564.0,88547.0,0.19214872]
[1769544181304,0.02301359,88564.0,88547.0,0.18822828]
[1769544181683,0.02301359,88564.0,88547.0,0.1814318]
[1769544181887,0.02301359,88564.0,88547.0,0.17947092]
[1769544182694,0.112877,88563.0,88547.0,0.17947092]
[1769544182887,0.02301359,88564.0,88547.0,0.17947092]
[1769544183100,0.112877,88563.0,88547.0,0.17947092]
[1769544183310,0.11291,88562.0,88547.0,0.17947092]
[1769544183516,0.02301359,88564.0,88547.0,0.17947092]
[1769544183730,0.11291,88563.0,88547.0,0.178724]
[1769544183927,0.11291,88562.0,88547.0,0.178724]
[1769544184135,0.02301359,88564.0,88547.0,0.178724]
[1769544184335,0.11293514,88563.0,88547.0,0.178724]
[1769544184559,0.11293514,88562.0,88547.0,0.178724]
[1769544184777,0.11293514,88561.0,88547.0,0.178724]
[1769544184981,0.02341359,88571.0,88551.0,0.02395358]
[1769544185213,0.1129285,88570.0,88554.0,0.17971599]
[1769544185424,0.1129285,88569.0,88556.0,0.17618203]
[1769544185628,0.02341359,88571.0,88555.0,0.02379164]
[1769544185890,0.02301359,88569.0,88553.0,0.0030102]
[1769544186091,0.16282602,88570.0,88534.0,0.0002616]
[1769544186092,0.01651238,88555.0,88538.0,0.02395358]
[1769544186297,0.02301359,88564.0,88541.0,0.17971599]
[1769544186497,0.02301359,88564.0,88543.0,0.17971599]
[1769544186717,0.17031264,88562.0,88544.0,0.0011301]
[1769544186920,0.02301359,88561.0,88544.0,0.18084609]
[1769544187711,0.17031264,88559.0,88535.0,0.17971599]
[1769544188044,0.02301359,88558.0,88537.0,0.17971599]
[1769544188256,0.02301359,88558.0,88539.0,0.17971599]
[1769544188472,0.02301359,88558.0,88541.0,0.17971599]
[1769544188683,0.02301359,88558.0,88543.0,0.17971599]
[1769544188894,0.02301359,88558.0,88544.0,0.00112937]
[1769544189075,0.02301359,88558.0,88544.0,0.18084536]
[1769544194637,0.02301359,88568.0,88550.0,0.02395358]
[1769544194854,0.11301327,88567.0,88553.0,0.17971599]
[1769544195106,0.11301327,88566.0,88553.0,0.17971599]
[1769544195338,0.11301327,88565.0,88553.0,0.17971599]
[1769544195541,0.26837679,88580.0,88548.0,0.26837679]
[1769544195542,0.11301327,88564.0,88548.0,0.26837679]
[1769544195700,0.11301327,88563.0,88546.0,0.17971599]
[1769544195919,0.11301327,88562.0,88546.0,0.17971599]
[1769544196116,0.11301327,88561.0,88546.0,0.17971599]
[1769544196327,0.02301359,88564.0,88546.0,0.17971599]
[1769544196529,0.11300856,88563.0,88546.0,0.17971599]
[1769544196702,0.11300856,88562.0,88546.0,0.17971599]
[1769544197040,0.11300856,88561.0,88546.0,0.17971599]
[1769544197236,0.02301359,88564.0,88546.0,0.17971599]
[1769544197462,0.11300859,88563.0,88546.0,0.17971599]
[1769544197611,0.11300859,88562.0,88546.0,0.17971599]
[1769544197811,0.11300859,88561.0,88550.0,0.26837679]
[1769544198014,0.02301359,88564.0,88550.0,0.26837679]
[1769544198240,0.11300819,88563.0,88550.0,0.26837679]
[1769544198443,0.11300819,88562.0,88550.0,0.26837679]
[1769544198643,0.11300819,88561.0,88550.0,0.26837679]
[1769544198845,0.02301359,88564.0,88550.0,0.26837679]
[1769544199048,0.02301359,88564.0,88534.0,0.0002616]
[1769544199049,0.17031264,88562.0,88540.0,0.26837679]
[1769544199251,0.02301359,88560.0,88542.0,0.17971599]
[1769544199725,0.03093353,88561.0,88542.0,0.17971599]
[1769544199955,0.03093353,88561.0,88542.0,0.20366957]
[1769544200373,0.03093353,88561.0,88544.0,0.17971599]
[1769544200766,0.17031264,88569.0,88545.0,0.02395358]
[1769544200996,0.17031264,88567.0,88545.0,0.02395358]
[1769544201203,0.17031264,88565.0,88545.0,0.02395358]
[1769544201401,0.28332547,88564.0,88545.0,0.02395358]
[1769544201603,0.11301283,88563.0,88545.0,0.02395358]
[1769544202914,0.11301283,88563.0,88546.0,0.17487976]
[1769544203126,0.11301283,88563.0,88547.0,0.02480917]
[1769544203334,0.11301283,88563.0,88547.0,0.17487976]
[1769544203533,0.11301283,88563.0,88548.0,0.02480917]
[1769544204454,0.0004,88571.0,88548.0,0.02480917]
[1769544204455,0.0004,88571.0,88548.0,0.18888703]
[1769544204682,0.0004,88571.0,88552.0,0.18888703]
[1769544204908,0.0004,88571.0,88555.0,0.18888703]
[1769544205120,0.0004,88571.0,88556.0,0.02264681]
[1769544206150,0.0004,88571.0,88559.0,0.18888703]
[1769544206474,0.01122791,88585.0,88564.0,0.02264681]
[1769544206689,0.0002632,88589.0,88568.0,0.02264681]
[1769544206898,0.0002632,88589.0,88571.0,0.18888703]
[1769544207107,0.0002632,88589.0,88561.0,0.11604]
[1769544207108,0.0002632,88589.0,88575.0,0.18888703]
[1769544207443,0.00040247,88589.0,88576.0,0.02230477]
[1769544207681,0.00040247,88589.0,88561.0,0.17249786]
[1769544207682,0.00040247,88589.0,88572.0,0.18888703]
[1769544207919,0.00040247,88589.0,88561.0,0.10527592]
[1769544207920,0.0002624,88605.0,88582.0,0.18888703]
[1769544208122,0.05615006,88604.0,88586.0,0.18888703]
[1769544208345,0.05615006,88604.0,88590.0,0.18888703]
[1769544208563,0.05615006,88604.0,88592.0,0.18854441]
[1769544208775,0.0002624,88605.0,88593.0,0.02264681]
[1769544209008,0.0002624,88605.0,88593.0,0.21153384]
[1769544209205,0.0002624,88605.0,88587.0,0.21153384]
[1769544209542,0.0002624,88605.0,88587.0,0.18888703]
[1769544209743,0.0002624,88605.0,88589.0,0.18888703]
[1769544211889,0.0002624,88605.0,88589.0,0.18384991]
[1769544212233,0.0002624,88605.0,88589.0,0.17714825]
[1769544212592,0.0002624,88605.0,88589.0,0.19979506]
[1769544214091,0.0002624,88605.0,88591.0,0.18888703]
[1769544217730,0.0002624,88605.0,88591.0,0.19001386]
[1769544218451,0.0002624,88605.0,88591.0,0.00112683]
[1769544218799,0.0002624,88605.0,88592.0,0.19001384]
[1769544219002,0.02420317,88604.0,88592.0,0.00112681]
[1769544219206,0.21287881,88603.0,88587.0,0.19001384]
[1769544219608,0.02420317,88603.0,88587.0,0.19001384]
[1769544219863,0.0002624,88605.0,88587.0,0.21266065]
[1769544220041,0.0002624,88605.0,88589.0,0.18888703]
[1769544220249,0.0002624,88605.0,88590.0,0.1900138]
[1769544220833,0.0002624,88605.0,88590.0,0.21266061]
[1769544227091,0.0002624,88605.0,88590.0,0.1900138]
[1769544227295,0.18867564,88603.0,88590.0,0.00112677]
[1769544227499,0.02420317,88597.0,88576.0,0.18888703]
[1769544227700,0.18867564,88595.0,88576.0,0.18888703]
[1769544227929,0.02420317,88594.0,88576.0,0.18888703]
[1769544228348,0.02420317,88594.0,88580.0,0.26820315]
[1769544229113,0.21287881,88593.0,88580.0,0.26820315]
[1769544229550,0.21287881,88593.0,88576.0,0.18888703]
[1769544229750,0.00013914,88597.0,88577.0,0.02264681]
[1769544229961,0.00013914,88597.0,88580.0,0.18888703]
[1769544230419,0.21287881,88596.0,88579.0,0.02264681]
[1769544230587,0.21287881,88596.0,88580.0,0.18888703]
[1769544231568,0.21287881,88596.0,88581.0,0.00043637]
[1769544231770,0.02420317,88596.0,88581.0,0.1893234]
[1769544234189,0.02420317,88596.0,88581.0,0.18958334]
[1769544234435,0.00013914,88597.0,88581.0,0.18958334]
[1769544234635,0.00013914,88597.0,88581.0,0.21388366]
[1769544235792,0.00013914,88597.0,88583.0,0.18721635]
[1769544237160,0.00013914,88597.0,88584.0,0.02499663]
[1769544237395,0.00013914,88597.0,88585.0,0.18721635]
[1769544237619,0.0002624,88605.0,88587.0,0.18721635]
[1769544237838,0.0002624,88605.0,88590.0,0.02499663]
[1769544238057,0.0002624,88605.0,88593.0,0.21221298]
[1769544238480,0.0002624,88605.0,88594.0,0.02499663]
[1769544238717,0.0002624,88605.0,88594.0,0.21221298]
[1769544239570,0.1868777,88613.0,88594.0,0.21221298]
[1769544239571,0.04697733,88613.0,88594.0,0.21221298]
[1769544239787,0.11294852,88612.0,88594.0,0.21221298]
[1769544239997,0.11294852,88611.0,88594.0,0.21221298]
[1769544240212,0.20077572,88614.0,88594.0,0.21221298]
[1769544240449,0.1868777,88611.0,88594.0,0.02499663]
[1769544241065,0.01389802,88612.0,88595.0,0.18721635]
[1769544241302,0.11294634,88611.0,88595.0,0.18721635]
[1769544241479,0.01389802,88612.0,88595.0,0.18721635]
[1769544241677,0.11294414,88611.0,88600.0,0.33518975]
[1769544241877,0.1868777,88617.0,88601.0,0.20948123]
[1769544242039,0.11294307,88616.0,88601.0,0.20540141]
[1769544242243,0.11294307,88615.0,88601.0,0.20319913]
[1769544242441,0.11294307,88614.0,88601.0,0.20099629]
[1769544242682,0.11294307,88613.0,88602.0,0.02499663]
[1769544242883,0.02438646,88620.0,88603.0,0.21221298]
[1769544243086,0.13593598,88619.0,88603.0,0.21221298]
[1769544243318,0.1868777,88617.0,88592.0,0.21221298]
[1769544243437,0.1868777,88615.0,88594.0,0.18721635]
[1769544243638,0.02299732,88614.0,88595.0,0.02814687]
[1769544243838,0.11293097,88613.0,88595.0,0.21536322]
[1769544244039,0.02299732,88612.0,88595.0,0.00315024]
[1769544244275,0.02299732,88608.0,88587.0,0.00328938]
[1769544244605,0.04988068,88614.0,88587.0,0.21550236]
[1769544244606,0.02299732,88606.0,88587.0,0.21550236]
[1769544244805,0.20987502,88606.0,88587.0,0.21550236]
[1769544245005,0.02299732,88606.0,88587.0,0.19050573]
[1769544245288,0.00112674,88618.0,88591.0,0.18721635]
[1769544245490,0.1868777,88622.0,88590.0,0.33518975]
[1769544245491,0.11292556,88617.0,88606.0,0.00999999]
[1769544245658,0.11292556,88616.0,88606.0,0.19721634]
[1769544245858,0.04988068,88621.0,88606.0,0.19721634]
[1769544246007,0.11292553,88620.0,88606.0,0.19721634]
[1769544246209,0.04988068,88621.0,88606.0,0.19721634]
[1769544246210,0.11292553,88619.0,88606.0,0.19721634]
[1769544246420,0.20987502,88622.0,88606.0,0.19721634]
[1769544246421,0.02299732,88622.0,88606.0,0.19721634]
[1769544246665,0.1868777,88620.0,88606.0,0.00999999]
[1769544246840,0.02299732,88616.0,88587.0,0.00013914]
[1769544247039,0.02299732,88613.0,88591.0,0.02499663]
[1769544247421,0.1868777,88612.0,88593.0,0.21221298]
[1769544248002,0.02299732,88613.0,88595.0,0.18721635]
[1769544248176,0.02299732,88613.0,88597.0,0.18721635]
[1769544248381,0.02299732,88613.0,88598.0,0.00096392]
[1769544250281,0.1868777,88611.0,88587.0,0.00013914]
[1769544250482,0.1868777,88607.0,88587.0,0.00013914]
[1769544250718,0.02299732,88606.0,88587.0,0.21235212]
[1769544250899,0.02299732,88606.0,88588.0,0.02499663]
[1769544251068,0.02299732,88606.0,88589.0,0.18721635]
[1769544251471,0.02299732,88606.0,88589.0,0.21221298]
[1769544252004,0.1868777,88612.0,88590.0,0.02499663]
[1769544252201,0.3227453,88611.0,88591.0,0.21221298]
[1769544252408,0.11286949,88610.0,88591.0,0.21221298]
[1769544252610,0.20987502,88611.0,88591.0,0.21221298]
[1769544252843,0.11286949,88610.0,88591.0,0.21221298]
[1769544253043,0.20987502,88611.0,88591.0,0.21221298]
[1769544253444,0.05417577,88604.0,88587.0,0.00013914]
[1769544253647,0.1868777,88603.0,88587.0,0.00013914]
[1769544253845,0.02299732,88602.0,88587.0,0.00013914]
[1769544254321,0.02299732,88602.0,88590.0,0.26813085]
[1769544254509,0.02299732,88614.0,88591.0,0.18721635]
[1769544254688,0.05417577,88610.0,88600.0,0.26813085]
[1769544254839,0.11287242,88609.0,88595.0,0.18721635]
[1769544255036,0.05417577,88610.0,88590.0,0.26813085]
[1769544255037,0.02299732,88605.0,88590.0,0.26813085]
[1769544255249,0.20987502,88604.0,88587.0,0.00013914]
[1769544255451,0.20987502,88604.0,88590.0,0.26813085]
[1769544257425,0.20987502,88604.0,88588.0,0.18721635]
[1769544257628,0.02299732,88604.0,88588.0,0.18721635]
[1769544257846,0.08992261,88615.0,88589.0,0.02499663]
[1769544258054,0.30183992,88614.0,88593.0,0.02499663]
[1769544258253,0.11287156,88613.0,88593.0,0.21221298]
[1769544258432,0.02299732,88611.0,88593.0,0.21221298]
[1769544258637,0.11496222,88610.0,88593.0,0.21221298]
[1769544258834,0.11287156,88609.0,88593.0,0.21221298]
[1769544260866,0.02299732,88611.0,88595.0,0.18721635]
[1769544261224,0.11289288,88610.0,88595.0,0.18721635]
[1769544261425,0.02299732,88611.0,88595.0,0.18721635]
[1769544261643,0.11289571,88610.0,88595.0,0.18721635]
[1769544261856,0.02299732,88611.0,88595.0,0.18721635]
[1769544262052,0.11289571,88610.0,88595.0,0.18721635]
[1769544262260,0.02299732,88611.0,88595.0,0.18721635]
[1769544262455,0.11290606,88610.0,88595.0,0.18611526]
[1769544262774,0.02299732,88611.0,88595.0,0.1828167]
[1769544262975,0.11290606,88610.0,88595.0,0.18234292]
[1769544263276,0.02299732,88611.0,88595.0,0.18234292]
[1769544263452,0.11291885,88610.0,88595.0,0.18234292]
[1769544263657,0.11291885,88609.0,88595.0,0.18234292]
[1769544263858,0.11291885,88608.0,88595.0,0.18234292]
[1769544264076,0.02299732,88611.0,88595.0,0.18234292]
[1769544264276,0.11292225,88610.0,88595.0,0.18234292]
[1769544264478,0.11292225,88609.0,88595.0,0.18234292]
[1769544264701,0.11292225,88608.0,88595.0,0.18234292]
[1769544264898,0.11292225,88607.0,88595.0,0.18234292]
[1769544265217,0.02299732,88611.0,88595.0,0.18234292]
[1769544265359,0.11295293,88610.0,88595.0,0.18234292]
[1769544265559,0.11295293,88609.0,88595.0,0.18234292]
[1769544265816,0.11295293,88608.0,88595.0,0.18234292]
[1769544265998,0.11295293,88607.0,88595.0,0.18234292]
[1769544266323,0.18399466,88610.0,88594.0,0.02499663]
[1769544266551,0.11296186,88609.0,88594.0,0.02499663]
[1769544266762,0.11296186,88608.0,88594.0,0.02499663]
[1769544266948,0.11296186,88607.0,88589.0,0.17826408]
[1769544267363,0.11296186,88607.0,88589.0,0.2012891]
[1769544267568,0.11296186,88607.0,88591.0,0.17697127]
[1769544267970,0.00209066,88614.0,88590.0,0.33513628]
[1769544268105,0.05417577,88619.0,88607.0,0.00999999]
[1769544268947,0.00209066,88621.0,88607.0,0.00999999]
[1769544269248,0.000253,88623.0,88609.0,0.19999629]
[1769544270929,0.000253,88623.0,88578.0,0.22578831]
[1769544270930,0.18399466,88619.0,88592.0,0.02302502]
[1769544271156,0.20876881,88619.0,88595.0,0.17697127]
[1769544271312,0.18399466,88617.0,88597.0,0.02302502]
[1769544271517,0.20876881,88615.0,88597.0,0.02302502]
[1769544271724,0.20876881,88613.0,88597.0,0.02302502]
[1769544271976,0.00209066,88612.0,88597.0,0.02302502]
[1769544272178,0.02477415,88613.0,88597.0,0.02302502]
[1769544272374,0.02477415,88613.0,88597.0,0.19999629]
[1769544274310,0.02686481,88619.0,88597.0,0.17697127]
[1769544274501,0.05417577,88617.0,88599.0,0.17697127]
[1769544276026,0.18608532,88616.0,88590.0,0.17697127]
[1769544276373,0.18399466,88613.0,88591.0,0.19999629]
[1769544276576,0.02686481,88612.0,88593.0,0.17697127]
[1769544276931,0.02477415,88612.0,88593.0,0.19999629]
[1769544277130,0.02477415,88612.0,88594.0,0.02302502]
[1769544277335,0.02477415,88612.0,88596.0,0.02302502]
[1769544277534,0.02477415,88612.0,88597.0,0.17697127]
[1769544278721,0.02477415,88612.0,88597.0,0.17097127]
[1769544278917,0.20876881,88612.0,88596.0,0.02302502]
[1769544279074,0.00209066,88611.0,88596.0,0.02302502]
[1769544279477,0.18399466,88610.0,88587.0,0.02316416]
[1769544279680,0.18399466,88605.0,88587.0,0.00013914]
[1769544279888,0.02477415,88598.0,88587.0,0.00013914]
[1769544280088,0.26809895,88600.0,88570.0,0.26809895]
[1769544280089,0.02477415,88594.0,88570.0,0.26809895]
[1769544280291,0.02477415,88587.0,88566.0,0.02302502]
[1769544280521,0.18399466,88585.0,88566.0,0.02302502]
[1769544280762,0.20876881,88585.0,88570.0,0.26809895]
[1769544281100,0.00013912,88594.0,88566.0,0.02302502]
[1769544281101,0.00013912,88594.0,88586.0,0.17697127]
[1769544281297,0.11293145,88593.0,88586.0,0.17697127]
[1769544281500,0.00013912,88594.0,88586.0,0.17697127]
[1769544281917,0.00013912,88594.0,88583.0,0.02302502]
[1769544282115,0.00013912,88594.0,88580.0,0.17697127]
[1769544283471,0.00013912,88594.0,88580.0,0.19999629]
[1769544284652,0.02477415,88592.0,88571.0,0.02302502]
[1769544284871,0.02477415,88590.0,88571.0,0.02302502]
[1769544285007,0.02477415,88590.0,88560.0,0.0002305]
[1769544285008,0.00013912,88594.0,88577.0,0.17697127]
[1769544285795,0.00013912,88594.0,88579.0,0.17697127]
[1769544286006,0.00013912,88594.0,88579.0,0.19999629]
[1769544290087,0.00013912,88594.0,88580.0,0.02302502]
[1769544290296,0.00013912,88594.0,88582.0,0.02302502]
[1769544290551,0.00013912,88594.0,88582.0,0.19999629]
[1769544292625,0.00013912,88594.0,88582.0,0.02302502]
[1769544292860,0.00013912,88594.0,88578.0,0.17697127]
[1769544293059,0.02491327,88594.0,88578.0,0.17697127]
[1769544293223,0.02477415,88593.0,88578.0,0.17697127]
[1769544296328,0.19226048,88592.0,88570.0,0.20718468]
[1769544296532,0.2137296,88590.0,88570.0,0.20718468]
[1769544296757,0.21155669,88589.0,88575.0,0.02424725]
[1769544296967,0.19016982,88585.0,88564.0,0.02424725]
[1769544297177,0.02355978,88583.0,88564.0,0.02424725]
[1769544297376,0.02158203,88583.0,88564.0,0.01824725]
[1769544297577,0.02355978,88577.0,88560.0,0.0002305]
[1769544297836,0.02355978,88575.0,88560.0,0.0002305]
[1769544298008,0.13559431,88594.0,88560.0,0.0002305]
[1769544298009,0.19016982,88587.0,88564.0,0.18293743]
[1769544298228,0.02355978,88585.0,88564.0,0.20718468]
[1769544298547,0.02355978,88585.0,88560.0,0.0002305]
[1769544298548,0.02355978,88591.0,88566.0,0.18293743]
[1769544298882,0.11476586,88590.0,88571.0,0.02424725]
[1769544299061,0.00209066,88590.0,88574.0,0.18293743]
[1769544299381,0.00209066,88590.0,88575.0,0.02424725]
[1769544299503,0.00013912,88594.0,88579.0,0.02424725]
[1769544299717,0.00013912,88594.0,88582.0,0.18293743]
[1769544300014,0.00013912,88594.0,88582.0,0.20718468]
[1769544300659,0.00013912,88594.0,88582.0,0.18293743]
[1769544300831,0.00013912,88594.0,88585.0,0.02424725]
[1769544301032,0.00013912,88594.0,88588.0,0.18293743]
[1769544301729,0.0002305,88609.0,88588.0,0.18293743]
[1769544301993,0.11478338,88608.0,88592.0,0.18293743]
[1769544302195,0.00209066,88608.0,88592.0,0.20561776]
[1769544303383,0.11271792,88607.0,88592.0,0.20561776]
[1769544303578,0.00209066,88606.0,88592.0,0.20561776]
[1769544303815,0.00209066,88608.0,88592.0,0.20561776]
[1769544304064,0.02355978,88605.0,88592.0,0.00013912]
[1769544304254,0.26813477,88602.0,88592.0,0.00013912]
[1769544304461,0.2137296,88599.0,88574.0,0.18293743]
[1769544304661,0.21386874,88599.0,88580.0,0.26813477]
[1769544304863,0.02355978,88598.0,88581.0,0.18293743]
[1769544305500,0.02355978,88598.0,88581.0,0.18115125]
[1769544305749,0.02355978,88598.0,88581.0,0.17400533]
[1769544305939,0.02355978,88598.0,88581.0,0.16775111]
[1769544306140,0.02355978,88598.0,88581.0,0.16238918]
[1769544306320,0.02355978,88598.0,88581.0,0.15702617]
[1769544306524,0.02355978,88598.0,88581.0,0.15434426]
[1769544306891,0.02355978,88598.0,88581.0,0.17859151]
[1769544307550,0.02355978,88598.0,88581.0,0.18061427]
[1769544307762,0.00033034,88599.0,88582.0,0.02424725]
[1769544307970,0.00033034,88599.0,88583.0,0.18293743]
[1769544308182,0.00033034,88599.0,88587.0,0.18293743]
[1769544308444,0.00033034,88599.0,88587.0,0.20718468]
[1769544311064,0.00033034,88599.0,88573.0,0.18833537]
[1769544311065,0.02355978,88597.0,88573.0,0.18833537]
[1769544311255,0.02355978,88595.0,88573.0,0.18833537]
[1769544311793,0.02355978,88595.0,88575.0,0.18293743]
[1769544312617,0.00209066,88594.0,88575.0,0.18293743]
[1769544312940,0.02355978,88593.0,88575.0,0.18293743]
[1769544313944,0.02355978,88593.0,88577.0,0.18293743]
[1769544314358,0.00033034,88599.0,88579.0,0.02424725]
[1769544314565,0.00033034,88599.0,88582.0,0.18293743]
[1769544314768,0.00033034,88599.0,88584.0,0.18287744]
[1769544316187,0.00033034,88599.0,88587.0,0.02424725]
[1769544316345,0.00033034,88599.0,88588.0,0.18293743]
[1769544316777,0.00033034,88599.0,88588.0,0.18021985]
[1769544316971,0.00033034,88599.0,88588.0,0.17342561]
[1769544317187,0.00033034,88599.0,88588.0,0.16663097]
[1769544317605,0.00209066,88606.0,88590.0,0.18293743]
[1769544317830,0.00010469,88606.0,88599.0,0.18326777]
[1769544318004,0.00010469,88606.0,88599.0,0.20751502]
[1769544318585,0.00010469,88606.0,88599.0,0.20718468]
[1769544322208,0.00010469,88606.0,88599.0,0.18293743]
[1769544322413,0.0001547,88608.0,88601.0,0.18293743]
[1769544322629,0.00022274,88608.0,88601.0,0.18293743]
[1769544323904,0.02580514,88618.0,88603.0,0.17851818]
[1769544324125,0.11276376,88617.0,88603.0,0.17851818]
[1769544324335,0.02580514,88618.0,88603.0,0.17851818]
[1769544324568,0.11275003,88617.0,88603.0,0.17851818]
[1769544324788,0.00209066,88623.0,88591.0,0.00313339]
[1769544324789,0.1824864,88624.0,88591.0,0.05957246]
[1769544324996,0.16929613,88637.0,88591.0,0.05957246]
[1769544324997,0.1127486,88623.0,88603.0,0.17937996]
[1769544325203,0.1127486,88622.0,88606.0,0.0228561]
[1769544325404,0.02396024,88625.0,88607.0,0.20223606]
[1769544325405,0.1127486,88621.0,88607.0,0.20223606]
[1769544325622,0.02396024,88625.0,88607.0,0.20223606]
[1769544325846,0.11272829,88624.0,88608.0,0.0228561]
[1769544326093,0.11272829,88623.0,88608.0,0.20223606]
[1769544326304,0.11272829,88622.0,88608.0,0.20223606]
[1769544326530,0.11272829,88622.0,88593.0,0.05643747]
[1769544326531,0.02396024,88623.0,88593.0,0.0228561]
[1769544326754,0.02396024,88621.0,88596.0,0.17937996]
[1769544326978,0.02396024,88621.0,88599.0,0.0228561]
[1769544327234,0.02396024,88621.0,88591.0,6.804e-05]
[1769544327235,0.000182,88628.0,88603.0,0.0228561]
[1769544327441,0.11271322,88627.0,88606.0,0.17937996]
[1769544327657,0.11271322,88626.0,88608.0,0.17937996]
[1769544327793,0.02396024,88627.0,88608.0,0.17937996]
[1769544327794,0.11271322,88625.0,88608.0,0.17937996]
[1769544327994,0.11271322,88624.0,88608.0,0.17937996]
[1769544328200,0.11271322,88623.0,88608.0,0.17937996]
[1769544328412,0.11271322,88622.0,88607.0,0.0228561]
[1769544329822,0.02396024,88619.0,88591.0,0.00119682]
[1769544329995,0.09035172,88628.0,88592.0,0.0228561]
[1769544329996,0.17999281,88616.0,88592.0,0.0228561]
[1769544330201,0.14658796,88624.0,88592.0,0.0228561]
[1769544330202,0.02396024,88613.0,88592.0,0.0228561]
[1769544330355,0.02396024,88611.0,88592.0,0.20223606]
[1769544330967,0.02396024,88611.0,88593.0,0.0228561]
[1769544331177,0.02396024,88611.0,88594.0,0.20223606]
[1769544331376,0.02396024,88622.0,88595.0,0.0228561]
[1769544331574,0.17999281,88620.0,88600.0,0.26803842]
[1769544331777,0.17999281,88616.0,88600.0,0.26803842]
[1769544332007,0.11278797,88615.0,88600.0,0.26803842]
[1769544332223,0.11278797,88615.0,88598.0,0.17937996]
[1769544332224,0.20395305,88616.0,88598.0,0.17937996]
[1769544332424,0.11278688,88615.0,88598.0,0.17937996]
[1769544332631,0.20395305,88616.0,88598.0,0.17937996]
[1769544332848,0.11278387,88615.0,88598.0,0.17937996]
[1769544333224,0.02396024,88615.0,88598.0,0.17937996]
[1769544335731,0.20395305,88615.0,88598.0,0.17937996]
[1769544336206,0.02396024,88615.0,88598.0,0.17937996]
[1769544336399,0.02396024,88615.0,88598.0,0.20223606]
[1769544337667,0.02396024,88615.0,88598.0,0.17937996]
[1769544337846,0.09016972,88624.0,88601.0,0.17937996]
[1769544338030,0.02396024,88622.0,88602.0,0.0228561]
[1769544338234,0.11279376,88621.0,88603.0,0.17937996]
[1769544338540,0.29278657,88620.0,88603.0,0.17937996]
[1769544338734,0.11279376,88619.0,88603.0,0.17937996]
[1769544339160,0.02396024,88619.0,88600.0,0.26803842]
[1769544339403,0.17999281,88616.0,88600.0,0.26803842]
[1769544339642,0.02396024,88615.0,88600.0,0.26803842]
[1769544339855,0.02396024,88624.0,88601.0,0.17937996]
[1769544340058,0.02396024,88619.0,88601.0,0.17937996]
[1769544341003,0.02396024,88618.0,88601.0,0.17937996]
[1769544344529,0.02396024,88618.0,88602.0,0.0228561]
[1769544344817,0.02396024,88618.0,88603.0,0.17937996]
[1769544345192,0.02396024,88618.0,88591.0,6.804e-05]
[1769544345407,0.17999281,88615.0,88592.0,0.20223606]
[1769544345711,0.02396024,88613.0,88592.0,0.20223606]
[1769544345912,0.00074497,88598.0,88592.0,0.20223606]
[1769544346304,0.02396024,88610.0,88592.0,0.20223606]
[1769544346500,0.02396024,88610.0,88592.0,0.17937996]
[1769544346705,0.02396024,88610.0,88594.0,0.17937996]
[1769544347281,0.02396024,88610.0,88594.0,0.17698977]
[1769544347510,0.02396024,88610.0,88594.0,0.17579451]
[1769544347706,0.02396024,88610.0,88594.0,0.19865061]
[1769544348022,0.02396024,88618.0,88596.0,0.20223606]